bitfinex/quotes_BTCUSD_20241226
["timestamp","ask_amount","ask_price","bid_price","bid_amount"]
[1735173170183,0.62044008,99234.0,99233.0,0.0002858]
[1735173170713,0.65184786,99234.0,99233.0,0.0002858]
[1735173170887,0.65084786,99234.0,99233.0,0.0002858]
[1735173171310,0.29053119,99234.0,99233.0,0.0002858]
[1735173171522,0.32193403,99234.0,99233.0,0.0002858]
[1735173171723,0.42193403,99234.0,99233.0,0.0002858]
[1735173172283,0.52193403,99234.0,99233.0,0.0002858]
[1735173172821,0.45295476,99230.0,99229.0,0.0147142]
[1735173173018,0.58834392,99230.0,99229.0,0.0147142]
[1735173173399,0.09994476,99223.0,99221.0,0.0001]
[1735173173600,0.46964316,99222.0,99221.0,0.0001]
[1735173174074,0.56958792,99222.0,99221.0,0.0001]
[1735173174279,0.66879611,99222.0,99221.0,0.0001]
[1735173174481,0.56958792,99222.0,99221.0,0.0001]
[1735173174906,1.17298625,99222.0,99221.0,0.0001]
[1735173175280,1.17498625,99222.0,99221.0,0.0001]
[1735173176075,1.18450646,99222.0,99221.0,0.0001]
[1735173176276,0.33427,99212.0,99211.0,0.0002858]
[1735173176475,0.43825632,99212.0,99211.0,0.0002858]
[1735173177006,0.77119672,99212.0,99211.0,0.0002858]
[1735173178259,0.87114148,99212.0,99211.0,0.0002858]
[1735173178586,0.9751278,99212.0,99211.0,0.0002858]
[1735173178992,1.1506278,99212.0,99211.0,0.0002858]
[1735173179190,1.1506278,99212.0,99171.0,0.0002858]
[1735173179191,0.51122476,99206.0,99171.0,0.0002858]
[1735173179480,0.6694743,99206.0,99171.0,0.0002858]
[1735173180070,0.70270975,99206.0,99171.0,0.0002858]
[1735173180311,0.90028594,99206.0,99171.0,0.0002858]
[1735173180487,1.23938176,99206.0,99171.0,0.0002858]
[1735173180725,0.09994476,99201.0,99171.0,0.0002858]
[1735173180967,0.53821908,99201.0,99171.0,0.0002858]
[1735173181281,0.53821908,99201.0,99200.0,0.89597969]
[1735173182136,0.43827432,99201.0,99200.0,0.89597969]
[1735173182360,0.41527432,99201.0,99200.0,0.89597969]
[1735173182565,0.4245594,99201.0,99200.0,0.89597969]
[1735173182941,0.93753292,99201.0,99200.0,0.89597969]
[1735173183146,0.93753292,99201.0,99200.0,0.89606549]
[1735173183547,0.94153292,99201.0,99200.0,0.89606549]
[1735173183749,0.96653292,99201.0,99200.0,0.89606549]
[1735173184156,0.58854353,99201.0,99200.0,0.89606549]
[1735173184810,0.58654353,99201.0,99200.0,0.89606549]
[1735173185037,0.58854353,99201.0,99200.0,0.89606549]
[1735173185370,0.54150807,99201.0,99200.0,0.89606549]
[1735173186440,0.4475594,99201.0,99200.0,0.89606549]
[1735173186779,0.4535594,99201.0,99200.0,0.89606549]
[1735173187103,0.4475594,99201.0,99200.0,0.89606549]
[1735173187303,0.4495594,99201.0,99200.0,0.89606549]
[1735173187505,0.4505594,99201.0,99200.0,0.89606549]
[1735173187930,0.4495594,99201.0,99200.0,0.89606549]
[1735173189515,0.4535594,99201.0,99200.0,0.89606549]
[1735173189968,0.4555594,99201.0,99200.0,0.89606549]
[1735173190471,0.4495594,99201.0,99200.0,0.89606549]
[1735173190683,0.4295594,99201.0,99200.0,0.89606549]
[1735173190907,0.4245594,99201.0,99200.0,0.89606549]
[1735173191333,0.4255594,99201.0,99200.0,0.89606549]
[1735173191514,0.4275594,99201.0,99200.0,0.89606549]
[1735173191744,0.4265594,99201.0,99200.0,0.89606549]
[1735173192676,0.4245594,99201.0,99200.0,0.89606549]
[1735173192946,0.4255594,99201.0,99200.0,0.89606549]
[1735173193199,0.4265594,99201.0,99200.0,0.89606549]
[1735173193688,0.4285594,99201.0,99200.0,0.89606549]
[1735173193926,0.4245594,99201.0,99200.0,0.89606549]
[1735173194161,0.4245594,99201.0,99200.0,1.01926549]
[1735173194162,0.1142714,99201.0,99200.0,1.01926549]
[1735173194361,0.08994867,99208.0,99202.0,0.0459]
[1735173194571,0.08994867,99208.0,99206.0,0.1232]
[1735173194775,0.13498413,99210.0,99207.0,0.322556]
[1735173194979,0.0001716,99234.0,99209.0,0.161275]
[1735173194980,0.08989497,99211.0,99209.0,0.161275]
[1735173195198,0.00688413,99214.0,99213.0,0.1215]
[1735173195411,0.00688413,99214.0,99213.0,0.22250778]
[1735173195620,0.00688413,99214.0,99213.0,0.22612065]
[1735173196093,0.18003312,99216.0,99213.0,0.22612065]
[1735173196304,0.161175,99271.0,99216.0,0.1]
[1735173196510,0.10415792,99234.0,99232.0,0.161237]
[1735173196775,0.0001716,99234.0,99233.0,0.00100768]
[1735173197034,0.0001716,99234.0,99233.0,0.00563094]
[1735173197512,0.0011716,99234.0,99233.0,0.00563094]
[1735173197719,0.0001716,99234.0,99233.0,0.00615042]
[1735173198151,0.0001716,99234.0,99233.0,0.08175042]
[1735173198366,0.0001716,99234.0,99233.0,0.18175042]
[1735173198801,0.0001716,99234.0,99233.0,0.18375042]
[1735173199025,0.0001716,99234.0,99233.0,0.28375042]
[1735173199236,6e-07,99240.0,99239.0,0.1]
[1735173199450,0.0001716,99267.0,99266.0,0.161183]
[1735173199661,0.0001716,99267.0,99266.0,0.16219016]
[1735173200110,0.0001716,99267.0,99266.0,0.16885321]
[1735173200335,0.0001716,99267.0,99266.0,0.24445321]
[1735173200544,0.0001716,99267.0,99266.0,0.24344605]
[1735173200798,0.0001716,99267.0,99266.0,0.24644605]
[1735173201059,0.00132782,99267.0,99266.0,0.24644605]
[1735173201782,0.00132782,99267.0,99266.0,0.00966305]
[1735173201989,0.00232782,99267.0,99266.0,0.01167029]
[1735173202209,0.00132782,99267.0,99266.0,0.00867029]
[1735173202470,0.00132782,99267.0,99266.0,0.01667029]
[1735173202697,0.00132782,99267.0,99266.0,0.00867029]
[1735173203170,0.00132782,99267.0,99266.0,0.01567029]
[1735173203171,0.00232782,99267.0,99266.0,0.01567029]
[1735173203404,0.00232782,99267.0,99266.0,0.20867029]
[1735173203615,0.00332782,99267.0,99266.0,0.21666305]
[1735173203831,0.00132782,99267.0,99266.0,0.20666305]
[1735173204270,0.00332782,99267.0,99266.0,0.31864937]
[1735173204495,0.00332782,99267.0,99266.0,0.26466305]
[1735173204709,0.00232782,99267.0,99266.0,0.11366305]
[1735173204898,0.00332782,99267.0,99266.0,0.11567024]
[1735173205343,0.00132782,99267.0,99266.0,0.00867024]
[1735173205790,0.00232782,99267.0,99266.0,0.01667024]
[1735173206180,0.00232782,99267.0,99266.0,0.01566305]
[1735173207273,0.10631414,99267.0,99266.0,0.01566305]
[1735173207499,0.10531414,99267.0,99266.0,0.01466305]
[1735173207742,0.10531414,99267.0,99266.0,0.008]
[1735173207987,0.10631414,99267.0,99266.0,0.009]
[1735173208220,0.10631414,99267.0,99266.0,0.008]
[1735173208460,0.10431414,99267.0,99250.0,0.11657757]
[1735173208695,0.00032782,99267.0,99266.0,0.009]
[1735173208937,0.00132782,99267.0,99266.0,0.009]
[1735173209141,0.00132782,99267.0,99266.0,0.00759897]
[1735173209640,0.00032782,99267.0,99266.0,0.00759897]
[1735173209857,0.00232782,99267.0,99266.0,0.00759897]
[1735173210402,0.00232782,99267.0,99266.0,0.00659897]
[1735173210403,0.10631414,99267.0,99266.0,0.00659897]
[1735173210606,0.10631414,99267.0,99266.0,0.00759897]
[1735173210811,0.10631414,99267.0,99266.0,0.001]
[1735173211041,0.00232782,99267.0,99266.0,0.001]
[1735173211204,0.00232782,99267.0,99266.0,0.00100725]
[1735173211570,0.00232782,99267.0,99266.0,0.00200725]
[1735173212005,0.00232782,99267.0,99266.0,0.00100725]
[1735173212420,0.00032782,99267.0,99266.0,0.00200725]
[1735173212839,0.00032782,99267.0,99266.0,0.20500725]
[1735173213062,0.00032782,99267.0,99266.0,0.20200725]
[1735173213333,0.00032782,99267.0,99266.0,0.105]
[1735173213560,0.00032782,99267.0,99266.0,0.10100716]
[1735173213745,0.00032782,99267.0,99266.0,0.00100716]
[1735173213981,0.00132782,99267.0,99266.0,0.00900716]
[1735173214299,0.00132782,99267.0,99266.0,0.01000716]
[1735173214742,0.00132782,99267.0,99266.0,0.00900716]
[1735173215206,0.00232782,99267.0,99266.0,0.009]
[1735173215955,0.00232782,99267.0,99266.0,0.0100072]
[1735173217607,0.00132782,99267.0,99266.0,0.0090072]
[1735173217910,0.00232782,99267.0,99266.0,0.0090072]
[1735173218106,0.00132782,99267.0,99266.0,0.0010072]
[1735173218311,0.00132782,99267.0,99266.0,0.1621902]
[1735173218540,0.00232782,99267.0,99266.0,0.1691902]
[1735173220307,0.00132782,99267.0,99266.0,0.1691902]
[1735173220706,0.00232782,99267.0,99266.0,0.1691902]
[1735173221433,0.00132782,99267.0,99266.0,0.1621902]
[1735173221850,0.00232782,99267.0,99266.0,0.1691902]
[1735173222261,0.00132782,99267.0,99266.0,0.1691902]
[1735173222466,0.00032782,99267.0,99266.0,0.1621902]
[1735173222700,0.00032782,99267.0,99266.0,0.1691902]
[1735173222895,0.00132782,99267.0,99266.0,0.1691902]
[1735173223127,0.00132782,99267.0,99266.0,0.1621902]
[1735173223282,0.00232782,99267.0,99266.0,0.1691902]
[1735173223510,0.00332782,99267.0,99266.0,0.1691902]
[1735173224174,0.0001716,99272.0,99266.0,0.4965902]
[1735173224391,0.0001718,99301.0,99289.0,0.1]
[1735173224618,0.0001718,99301.0,99300.0,0.161127]
[1735173224828,0.0001718,99301.0,99300.0,0.2621338]
[1735173225037,0.0001718,99301.0,99300.0,0.461127]
[1735173225252,0.0001718,99301.0,99300.0,0.508127]
[1735173225644,8e-07,99301.0,99300.0,0.76211332]
[1735173225884,8e-07,99301.0,99300.0,0.83682569]
[1735173226201,0.00015694,99301.0,99300.0,0.83682569]
[1735173226426,0.00115694,99301.0,99300.0,0.81521332]
[1735173226633,0.00115694,99301.0,99300.0,0.85137978]
[1735173227015,0.00115694,99301.0,99300.0,0.85437978]
[1735173227361,0.00115694,99301.0,99300.0,0.82476741]
[1735173227564,0.00015694,99301.0,99300.0,0.85237978]
[1735173227812,0.00115694,99301.0,99300.0,0.85237978]
[1735173228085,0.00115694,99301.0,99300.0,0.82576741]
[1735173228303,0.00215694,99301.0,99300.0,0.83276741]
[1735173228512,0.00115694,99301.0,99300.0,0.01555409]
[1735173228650,0.00215694,99301.0,99300.0,0.015]
[1735173229459,0.00115694,99301.0,99300.0,0.006]
[1735173229659,0.00115694,99301.0,99300.0,0.00100692]
[1735173229660,0.00015694,99301.0,99300.0,0.00100692]
[1735173229858,0.00015694,99301.0,99300.0,0.003]
[1735173230253,0.00115694,99301.0,99300.0,0.003]
[1735173230438,0.00015694,99301.0,99300.0,0.00100678]
[1735173230842,0.00115694,99301.0,99300.0,0.01200678]
[1735173231245,0.00115694,99301.0,99300.0,0.00100678]
[1735173231476,0.00115694,99301.0,99300.0,0.00400678]
[1735173232087,0.00115694,99301.0,99300.0,0.01000678]
[1735173232291,0.00015694,99301.0,99300.0,0.01000678]
[1735173232653,0.00015694,99301.0,99300.0,0.01300678]
[1735173233074,0.00015694,99301.0,99300.0,0.01500678]
[1735173233455,0.00015694,99301.0,99300.0,0.01300678]
[1735173233852,0.00015694,99301.0,99300.0,0.00400678]
[1735173234096,0.00115694,99301.0,99300.0,0.11100678]
[1735173234296,0.00115694,99301.0,99300.0,0.36100678]
[1735173234470,0.00115694,99301.0,99300.0,0.46398632]
[1735173234854,0.00015694,99301.0,99300.0,0.45698632]
[1735173235259,0.00115694,99301.0,99300.0,0.48420449]
[1735173236195,0.00115694,99301.0,99300.0,0.49068999]
[1735173236606,0.00115694,99301.0,99300.0,0.49368999]
[1735173236800,0.00015694,99301.0,99300.0,0.48668999]
[1735173237042,0.00015694,99301.0,99300.0,0.48368999]
[1735173237181,0.00115694,99301.0,99300.0,0.49868999]
[1735173237379,0.00115694,99301.0,99300.0,0.48968999]
[1735173237579,0.00115694,99301.0,99300.0,0.49868999]
[1735173237804,0.00115694,99301.0,99300.0,0.49268999]
[1735173238007,0.00115694,99301.0,99300.0,0.49868999]
[1735173238231,0.00215694,99301.0,99300.0,0.49868999]
[1735173238914,0.00215694,99301.0,99300.0,0.52694402]
[1735173239041,0.0001718,99340.0,99333.0,0.161074]
[1735173239232,0.00032791,99334.0,99333.0,0.161074]
[1735173239872,0.00032791,99334.0,99333.0,0.18932803]
[1735173240257,0.00132791,99334.0,99333.0,0.18932803]
[1735173240484,0.00132791,99334.0,99324.0,0.27766557]
[1735173240485,0.00032791,99334.0,99324.0,0.27766557]
[1735173240700,0.00032791,99334.0,99333.0,0.004]
[1735173240860,0.00032791,99334.0,99333.0,0.01]
[1735173241205,0.00032791,99334.0,99324.0,0.11657757]
[1735173241206,0.00032791,99334.0,99327.0,0.161082]
[1735173241359,0.00032791,99334.0,99333.0,0.005]
[1735173241783,0.00032791,99334.0,99330.0,0.0010066]
[1735173241984,0.00032791,99334.0,99324.0,0.11657757]
[1735173242187,0.18168632,99333.0,99300.0,0.11666337]
[1735173242364,0.161094,99321.0,99301.0,0.161126]
[1735173242570,0.161094,99321.0,99301.0,0.16213279]
[1735173242571,0.161097,99319.0,99301.0,0.16213279]
[1735173242779,0.10398632,99318.0,99301.0,0.16213279]
[1735173243182,0.10398632,99318.0,99308.0,0.11657757]
[1735173243389,0.10398632,99318.0,99308.0,0.11758443]
[1735173243597,0.10398632,99318.0,99309.0,0.161113]
[1735173243792,0.001,99321.0,99310.0,0.00100686]
[1735173244086,0.10398632,99320.0,99310.0,0.00100686]
[1735173244264,0.1964,99332.0,99310.0,0.00100686]
[1735173244506,0.10398632,99331.0,99308.0,0.00100674]
[1735173244703,0.16109,99323.0,99305.0,0.161118]
[1735173244910,0.161093,99321.0,99309.0,0.004]
[1735173245117,0.26508132,99320.0,99301.0,0.162125]
[1735173245518,0.26508132,99320.0,99310.0,0.004]
[1735173246162,0.26508132,99320.0,99310.0,0.006]
[1735173246551,0.26508132,99320.0,99310.0,0.004]
[1735173246793,0.26508132,99320.0,99301.0,0.161125]
[1735173247012,0.26708132,99320.0,99301.0,0.161125]
[1735173247443,0.078,99310.0,99300.0,8.58e-05]
[1735173247653,0.10398632,99309.0,99300.0,8.58e-05]
[1735173248078,0.10398632,99309.0,99301.0,0.161125]
[1735173248308,0.10398632,99309.0,99301.0,0.16213192]
[1735173249471,0.10398632,99309.0,99300.0,8.58e-05]
[1735173249693,0.10498632,99309.0,99300.0,8.58e-05]
[1735173250359,0.10398632,99309.0,99300.0,8.58e-05]
[1735173250865,0.0495,99308.0,99300.0,8.58e-05]
[1735173251051,0.10398632,99307.0,99300.0,8.58e-05]
[1735173251680,0.0495,99308.0,99301.0,0.161126]
[1735173251892,0.078,99310.0,99306.0,0.161117]
[1735173252158,0.10498632,99309.0,99302.0,0.161124]
[1735173252400,0.10498632,99309.0,99300.0,8.58e-05]
[1735173252613,0.10398632,99309.0,99300.0,8.58e-05]
[1735173253052,0.10398632,99309.0,99306.0,0.001]
[1735173253659,0.10398632,99309.0,99301.0,3.0]
[1735173253864,0.10398632,99309.0,99301.0,3.161125]
[1735173254951,0.10398632,99309.0,99301.0,3.0]
[1735173255322,0.10498632,99309.0,99301.0,3.0]
[1735173255944,0.10398632,99309.0,99301.0,3.0]
[1735173256141,0.10398632,99309.0,99301.0,3.001]
[1735173256924,0.10398632,99309.0,99301.0,3.0]
[1735173257083,0.10498632,99309.0,99301.0,3.0]
[1735173258311,0.10398632,99309.0,99301.0,3.0]
[1735173258537,0.0001716,99318.0,99301.0,3.0]
[1735173258538,0.023,99302.0,99301.0,3.0]
[1735173258735,0.35238632,99302.0,99301.0,3.0]
[1735173259771,0.35238632,99302.0,99301.0,3.00051948]
[1735173262565,0.36192704,99302.0,99301.0,3.00051948]
[1735173266746,0.36192704,99302.0,99301.0,3.00060528]
[1735173267788,0.38189905,99302.0,99301.0,3.00060528]
[1735173268909,0.50454992,99302.0,99301.0,3.00060528]
[1735173269314,0.76504468,99302.0,99301.0,2.74440528]
[1735173269558,0.76504468,99302.0,99301.0,2.74540528]
[1735173269759,0.68999381,99302.0,99301.0,2.74440528]
[1735173269971,0.69399381,99302.0,99301.0,2.74440528]
[1735173270170,0.69399381,99302.0,99301.0,2.74540528]
[1735173270370,0.69399381,99302.0,99301.0,2.74440528]
[1735173270831,1.02701951,99302.0,99301.0,2.74440528]
[1735173270978,1.12700583,99302.0,99301.0,2.74440528]
[1735173271418,1.13200583,99302.0,99301.0,2.74540528]
[1735173271687,1.13300583,99302.0,99301.0,2.74640528]
[1735173271811,1.12800583,99302.0,99301.0,2.74540528]
[1735173272024,1.12700583,99302.0,99301.0,2.74540528]
[1735173272241,1.13400583,99302.0,99301.0,2.74640528]
[1735173272491,0.57655274,99302.0,99301.0,2.74640528]
[1735173272695,0.52895274,99302.0,99301.0,2.74640528]
[1735173274052,0.67895274,99302.0,99301.0,2.74540528]
[1735173274272,0.36192704,99302.0,99301.0,2.74440528]
[1735173274487,0.36792704,99302.0,99301.0,2.74540528]
[1735173275067,0.36792704,99302.0,99301.0,2.74440528]
[1735173275068,0.36192704,99302.0,99301.0,2.74440528]
[1735173275263,0.36492704,99302.0,99301.0,2.74440528]
[1735173275471,0.28952704,99302.0,99301.0,2.74540528]
[1735173275652,0.28652704,99302.0,99301.0,2.74440528]
[1735173276037,0.28952704,99302.0,99301.0,2.74440528]
[1735173277532,0.28652704,99302.0,99301.0,2.74440528]
[1735173278143,0.28852704,99302.0,99301.0,2.74440528]
[1735173278574,0.28652704,99302.0,99301.0,2.74440528]
[1735173278914,0.28652704,99302.0,99301.0,2.67452684]
[1735173278915,0.4665718,99302.0,99301.0,2.67452684]
[1735173279118,0.4665718,99302.0,99301.0,2.66514302]
[1735173279119,0.36662704,99302.0,99301.0,2.66514302]
[1735173279365,0.39798775,99302.0,99301.0,2.66514302]
[1735173279769,0.36679864,99302.0,99301.0,2.66514302]
[1735173279976,0.38694435,99302.0,99301.0,2.52552032]
[1735173280316,0.58688911,99302.0,99301.0,2.52552032]
[1735173280527,0.58688911,99302.0,99301.0,2.52652032]
[1735173280847,0.58488911,99302.0,99301.0,2.52652032]
[1735173281282,0.58688911,99302.0,99301.0,2.52652032]
[1735173281493,0.48688911,99302.0,99301.0,2.52652032]
[1735173281696,0.67499543,99302.0,99301.0,2.50599894]
[1735173281889,0.67999543,99302.0,99301.0,2.50599894]
[1735173282091,0.78398175,99302.0,99301.0,2.50499894]
[1735173282783,0.82034256,99302.0,99301.0,2.50599894]
[1735173283119,0.78898175,99302.0,99301.0,2.50599894]
[1735173283348,0.82903491,99302.0,99301.0,2.50499894]
[1735173283527,0.83403491,99302.0,99301.0,2.50599894]
[1735173284353,0.73004859,99302.0,99301.0,2.50599894]
[1735173285972,0.59488911,99302.0,99301.0,2.50599894]
[1735173286174,0.49488911,99302.0,99301.0,2.50599894]
[1735173286379,0.59488911,99302.0,99301.0,2.50599894]
[1735173286978,1.16854928,99302.0,99301.0,2.50599894]
[1735173287201,1.00799928,99302.0,99301.0,2.50599894]
[1735173287613,0.78680881,99302.0,99301.0,2.50599894]
[1735173287826,0.63680881,99302.0,99301.0,2.50599894]
[1735173288248,0.62226809,99302.0,99301.0,2.58599894]
[1735173288475,0.62726809,99302.0,99301.0,2.58599894]
[1735173289137,0.62226809,99302.0,99301.0,2.58499894]
[1735173289343,0.62526809,99302.0,99301.0,2.58599894]
[1735173289541,0.62526809,99302.0,99301.0,2.58499894]
[1735173289542,0.11215792,99302.0,99301.0,2.58499894]
[1735173289950,0.11015792,99302.0,99301.0,2.58499894]
[1735173290361,0.0081716,99302.0,99301.0,2.79352494]
[1735173290775,0.0061716,99302.0,99301.0,2.79352494]
[1735173291027,0.0081716,99302.0,99301.0,2.79352494]
[1735173291640,0.0061716,99302.0,99301.0,2.79352494]
[1735173291847,0.0081716,99302.0,99301.0,2.79352494]
[1735173292051,0.0021716,99302.0,99301.0,2.79352494]
[1735173292425,0.0051716,99302.0,99301.0,2.79352494]
[1735173292805,0.0081716,99302.0,99301.0,2.79352494]
[1735173293012,0.0061716,99302.0,99301.0,2.79352494]
[1735173293433,0.0081716,99302.0,99301.0,2.63239894]
[1735173293755,0.0001716,99302.0,99301.0,2.63239894]
[1735173294225,0.0001716,99302.0,99301.0,2.63539894]
[1735173294424,0.10415792,99302.0,99301.0,2.63539894]
[1735173294603,0.10415792,99302.0,99301.0,2.63439894]
[1735173294847,0.10415792,99302.0,99301.0,2.58699894]
[1735173295056,0.10415792,99302.0,99301.0,2.50799894]
[1735173296006,0.25415792,99302.0,99301.0,2.50599894]
[1735173296272,0.25415792,99302.0,99301.0,2.50699894]
[1735173296533,0.25415792,99302.0,99301.0,2.50599894]
[1735173296780,0.25515792,99302.0,99301.0,2.50499894]
[1735173297326,0.25415792,99302.0,99301.0,2.50699894]
[1735173297576,0.27915792,99302.0,99301.0,2.50499894]
[1735173297830,0.27715792,99302.0,99301.0,2.50499894]
[1735173298067,0.27915792,99302.0,99301.0,2.50499894]
[1735173298593,0.27715792,99302.0,99301.0,2.50499894]
[1735173298837,0.27815792,99302.0,99301.0,2.50499894]
[1735173299058,0.28115792,99302.0,99301.0,2.50499894]
[1735173299736,0.27815792,99302.0,99301.0,2.50499894]
[1735173299953,0.27715792,99302.0,99301.0,2.50499894]
[1735173300096,0.28015792,99302.0,99301.0,2.50599894]
[1735173300302,0.28215792,99302.0,99301.0,2.50599894]
[1735173300814,0.44128192,99302.0,99301.0,2.50599894]
[1735173301028,0.44628192,99302.0,99301.0,2.50599894]
[1735173301467,0.44128192,99302.0,99301.0,2.50599894]
[1735173301696,0.53157834,99302.0,99301.0,2.50599894]
[1735173301905,0.53357834,99302.0,99301.0,2.50599894]
[1735173302329,0.53057834,99302.0,99301.0,2.50499894]
[1735173302556,0.53457834,99302.0,99301.0,2.50499894]
[1735173302901,0.44428192,99302.0,99301.0,2.50499894]
[1735173303114,0.44228192,99302.0,99301.0,2.50499894]
[1735173303340,0.44328192,99302.0,99301.0,2.50499894]
[1735173303783,0.44928192,99302.0,99301.0,2.50599894]
[1735173304001,0.57362976,99302.0,99301.0,2.50499894]
[1735173304234,0.68261608,99302.0,99301.0,2.50499894]
[1735173304454,0.85697452,99302.0,99301.0,2.31156133]
[1735173304662,0.9902758,99302.0,99301.0,1.99568765]
[1735173304877,0.9902758,99302.0,99301.0,1.86648859]
[1735173305089,0.9902758,99302.0,99301.0,0.7906052]
[1735173305090,0.9478758,99302.0,99301.0,0.7906052]
[1735173305296,0.97746212,99302.0,99301.0,0.6883401]
[1735173305514,0.97746212,99302.0,99301.0,0.64978317]
[1735173305515,1.33995331,99302.0,99301.0,0.64978317]
[1735173305719,1.33995331,99302.0,99301.0,0.58650117]
[1735173305929,1.34395331,99302.0,99301.0,0.54721917]
[1735173306162,1.33595331,99302.0,99301.0,0.54621917]
[1735173306371,1.33595331,99302.0,99301.0,0.54721917]
[1735173306575,1.33595331,99302.0,99301.0,0.44751417]
[1735173306576,1.16574067,99302.0,99301.0,0.44751417]
[1735173306782,1.16574067,99302.0,99301.0,0.21781943]
[1735173306991,1.15974067,99302.0,99301.0,0.21681943]
[1735173307435,1.16774067,99302.0,99301.0,0.18919539]
[1735173307822,1.16774067,99302.0,99301.0,0.16905439]
[1735173308126,1.16774067,99302.0,99301.0,0.14891339]
[1735173308420,1.16774067,99302.0,99301.0,0.12877239]
[1735173308631,1.16774067,99302.0,99301.0,0.10863139]
[1735173308835,1.16774067,99302.0,99301.0,0.04820839]
[1735173309245,1.63449884,99302.0,99301.0,0.02806739]
[1735173309454,0.09994476,99272.0,99248.0,0.0819]
[1735173309665,0.023,99252.0,99248.0,0.0819]
[1735173309807,0.10398632,99251.0,99248.0,0.0819]
[1735173310625,0.10450635,99251.0,99248.0,0.0829]
[1735173311417,0.12698632,99249.0,99248.0,0.0819]
[1735173313360,0.173,99248.0,99240.0,8.58e-05]
[1735173313577,0.27698632,99241.0,99240.0,8.58e-05]
[1735173315521,0.28398632,99241.0,99240.0,0.0010858]
[1735173315736,0.28698632,99241.0,99240.0,0.0010858]
[1735173316154,0.28398632,99241.0,99240.0,0.0010858]
[1735173316393,0.2941041,99241.0,99240.0,0.0010858]
[1735173317098,0.2971041,99241.0,99240.0,0.0010858]
[1735173318722,0.48511855,99241.0,99240.0,0.0010858]
[1735173319607,0.39704886,99241.0,99240.0,0.0010858]
[1735173320112,0.39404886,99241.0,99240.0,0.0010858]
[1735173320357,0.39704886,99241.0,99240.0,0.0010858]
[1735173320971,0.39004886,99241.0,99240.0,8.58e-05]
[1735173321170,0.39704886,99241.0,99240.0,0.0010858]
[1735173321448,0.50103518,99241.0,99240.0,0.0010858]
[1735173321867,0.49103518,99241.0,99240.0,8.58e-05]
[1735173322077,0.50003518,99241.0,99240.0,0.0010858]
[1735173322558,0.60003518,99241.0,99240.0,8.58e-05]
[1735173322826,0.61403518,99241.0,99240.0,0.0010858]
[1735173323032,0.51403518,99241.0,99240.0,0.0010858]
[1735173323239,0.61403518,99241.0,99240.0,0.0010858]
[1735173323453,0.334257,99220.0,99219.0,0.0832]
[1735173323660,0.43824332,99220.0,99219.0,0.0832]
[1735173323882,0.43824332,99220.0,99219.0,0.08788091]
[1735173324140,0.43824332,99220.0,99219.0,0.0832]
[1735173324887,0.10650602,99220.0,99219.0,0.0832]
[1735173325135,0.10398632,99220.0,99219.0,0.1328]
[1735173325389,0.10698632,99220.0,99219.0,0.13750868]
[1735173325882,0.10598632,99220.0,99219.0,0.13750868]
[1735173326388,0.10698632,99220.0,99219.0,0.13750868]
[1735173326614,0.003,99220.0,99219.0,0.13750868]
[1735173326824,0.003,99220.0,99219.0,0.13851644]
[1735173327063,0.023,99240.0,99221.0,0.0832]
[1735173327339,0.173,99238.0,99222.0,0.161254]
[1735173327565,0.10398632,99237.0,99223.0,0.0832]
[1735173327783,0.10398632,99237.0,99230.0,0.0832]
[1735173328285,0.10398632,99237.0,99231.0,0.00464738]
[1735173328504,0.26521732,99237.0,99231.0,0.00464738]
[1735173328712,0.10498632,99237.0,99231.0,0.00464738]
[1735173328933,0.10498632,99237.0,99230.0,0.0832]
[1735173329421,0.10598632,99237.0,99230.0,0.0832]
[1735173329931,0.43822532,99231.0,99230.0,0.0832]
[1735173330189,0.43822532,99231.0,99223.0,0.005]
[1735173330190,0.334251,99224.0,99223.0,0.005]
[1735173330391,0.43823732,99224.0,99223.0,0.005]
[1735173330671,0.27698632,99224.0,99223.0,0.00465079]
[1735173330901,0.27698632,99224.0,99219.0,0.00015614]
[1735173330902,0.173,99222.0,99219.0,0.00015614]
[1735173331154,0.26524232,99221.0,99219.0,0.00015614]
[1735173331633,0.173,99220.0,99219.0,0.00015614]
[1735173331866,0.27698632,99220.0,99219.0,0.00015614]
[1735173333109,0.25398632,99220.0,99219.0,0.00015614]
[1735173333488,0.10398632,99220.0,99219.0,0.00015614]
[1735173334026,0.10398632,99220.0,99219.0,0.07755614]
[1735173334027,0.10798632,99220.0,99219.0,0.07755614]
[1735173334229,0.10798632,99220.0,99219.0,0.08179116]
[1735173334415,0.10398632,99220.0,99219.0,0.08179116]
[1735173334623,0.10498632,99220.0,99219.0,0.08179116]
[1735173334828,0.10798632,99220.0,99219.0,0.08179116]
[1735173335247,0.004,99220.0,99219.0,0.08179116]
[1735173335691,0.003,99220.0,99219.0,0.08179116]
[1735173336870,0.18423,99237.0,99219.0,0.08179116]
[1735173337067,0.15,99234.0,99219.0,0.08479116]
[1735173337276,0.15,99234.0,99221.0,0.0774]
[1735173337277,0.10398632,99233.0,99221.0,0.0774]
[1735173337496,0.10398632,99233.0,99225.0,0.0774]
[1735173337853,0.10398632,99233.0,99226.0,0.00422712]
[1735173338310,0.10398632,99233.0,99232.0,0.161238]
[1735173338516,0.001,99234.0,99233.0,0.0774]
[1735173338716,0.001,99234.0,99233.0,0.12730757]
[1735173338921,0.00999838,99257.0,99234.0,0.483705]
[1735173339129,0.10398632,99256.0,99235.0,0.00100757]
[1735173339317,0.10398632,99256.0,99235.0,0.00523153]
[1735173339726,0.15,99255.0,99236.0,0.161231]
[1735173339954,0.15,99253.0,99235.0,0.00422396]
[1735173340153,0.15,99251.0,99237.0,0.00421475]
[1735173340360,0.15,99249.0,99236.0,0.161231]
[1735173340568,0.10398632,99248.0,99239.0,0.161226]
[1735173340773,0.15,99247.0,99239.0,0.161226]
[1735173340981,0.10398632,99246.0,99240.0,0.00421415]
[1735173341187,0.10398632,99241.0,99240.0,0.00421415]
[1735173341393,0.50827865,99241.0,99240.0,0.00421415]
[1735173341608,0.173,99226.0,99201.0,0.0774857]
[1735173341813,0.43824332,99220.0,99201.0,0.0774857]
[1735173342030,0.46959089,99220.0,99201.0,0.0774857]
[1735173342655,0.46959089,99220.0,99201.0,8.57e-05]
[1735173343490,0.334262,99217.0,99216.0,0.00021456]
[1735173343695,0.43824832,99217.0,99216.0,0.00021456]
[1735173344714,0.44524832,99217.0,99216.0,0.00021456]
[1735173345146,0.43824832,99217.0,99216.0,0.00021456]
[1735173345351,0.47659613,99217.0,99216.0,0.00021456]
[1735173345563,0.61465873,99217.0,99216.0,0.00021456]
[1735173346033,0.61165873,99217.0,99216.0,0.00021456]
[1735173346243,0.62556789,99217.0,99216.0,0.00021456]
[1735173346446,0.9963794,99217.0,99216.0,0.00021456]
[1735173346852,1.0033794,99217.0,99216.0,0.00021456]
[1735173347056,0.9963794,99217.0,99216.0,0.00021456]
[1735173347470,1.0033794,99217.0,99216.0,0.00021456]
[1735173347886,0.52387411,99217.0,99216.0,0.12921456]